Cogmind - Beta 15 @@@ ROGUE MODE // 2025.09.21 @ 19:46:28 Player: abstractfish Result: Destroyed by G-34 Mercenary with Small Laser Performance ------------- Evolutions (1) 500 Regions Visited (3) 600 Robots Destroyed (37) 185 Value Destroyed (926) 926 Prototype IDs (0) 0 Alien Tech Used (0) 0 Bonus (0) 0 TOTAL SCORE: 2211 Bonus ------- None Cogmind --------- Core Integrity 0/400 Matter 300/300 Energy 100/100 System Corruption 0% Temperature Cool (15) Movement Core (50) Location -9/Materials Parts ------- > --- POWER (2) -------- (None) > --- PROPULSION (2) --- (None) > --- UTILITY (3) ------ Heat Sink > --- WEAPON (2) ------- (None) > --- INVENTORY (5) ---- Improved Ion Engine Light Treads Armored Wheel Shotgun Grenade Launcher Peak State ------------ > --- POWER ------------ Ion Engine Ion Engine > --- PROPULSION ------- Armored Wheel Armored Wheel > --- UTILITY ---------- Improved Heat Sink Small Storage Unit Improved Terrain Scanner > --- WEAPON ----------- Particle Gun Shotgun > --- INVENTORY -------- Light Treads Light Treads Armored Wheel Small Laser Beam Cannon Grenade Launcher Grenade Launcher [Rating: 17] Favorites ----------- Power Light Ion Engine Engine Light Ion Engine Propulsion Aluminum Leg Treads Light Treads Leg Aluminum Leg Wheel Compact Wheel Utility Small Storage Unit Device Improved Terrain Scanner Storage Small Storage Unit Weapon Grenade Launcher Energy Gun Particle Gun Energy Cannon Beam Cannon Ballistic Gun Assault Rifle Launcher Grenade Launcher Build | -11 -10 -10 -9 ------- Run | Yrd Mat Min Mat Slots Evolved 2 | . . . 2 Power 1 | . . . 1 Propulsion . | . . . . Utility 1 | . . . 1 Weapon . | . . . . Parts Attached 32 | 7 9 1 15 Power 7 | . 3 . 4 Engine 7 | . 3 . 4 Core . | . . . . Reactor . | . . . . Propulsion 10 | 4 1 . 5 Treads 1 | 1 . . . Leg 5 | 1 1 . 3 Wheel 4 | 2 . . 2 Hover . | . . . . Flight . | . . . . Utility 6 | 1 3 . 2 Device 5 | . 3 . 2 Storage 1 | 1 . . . Processor . | . . . . Hackware . | . . . . Protection . | . . . . Artifact . | . . . . Weapon 9 | 2 2 1 4 Energy Gun 3 | . . . 3 Energy Cannon 1 | . 1 . . Ballistic Gun 3 | 2 . . 1 Ballistic Cannon . | . . . . Launcher 2 | . 1 1 . Special Weapon . | . . . . Impact Weapon . | . . . . Slashing Weapon . | . . . . Piercing Weapon . | . . . . Special Melee Weapon . | . . . . Unidentified Prototypes . | . . . . Parts Lost 15 | . 1 . 14 Power 6 | . 1 . 5 Propulsion 3 | . . . 3 Utility 3 | . . . 3 Weapon 3 | . . . 3 Highest Loss Streak 7 | . 1 . 7 To Critical Strikes . | . . . . Average Backups 7 | 5 6 7 7 Power . | 1 . 1 . Propulsion 3 | 2 4 4 3 Utility . | . . . . Weapon 2 | 1 1 2 3 Tool/Special . | . . . . Unused Backups 3 | . . . 3 Power 1 | . . . 1 Propulsion 2 | . . . 2 Utility . | . . . . Weapon . | . . . . Tool/Special . | . . . . Average Slot Usage (%) 93 | . 95 100 78 Engine 13 | . 13 14 13 Leg 15 | . 10 28 7 Wheel 10 | . 17 . 12 Device 12 | . 10 14 15 Storage 13 | . 14 14 11 Energy Gun 1 | . . . 8 Energy Cannon 6 | . 12 1 1 Ballistic Gun 6 | . 11 . 7 Launcher 11 | . 4 26 2 Peak Build Rating 17 | 5 9 9 17 Average Rating 8 | 3 6 9 12 On Entrance 5 | . 5 9 9 Naked Turns . | . . . . Heaviest Build 23 | 9 16 15 23 Greatest Support 26 | 26 26 20 24 Greatest Overweight (x) 2 | . . . 2 Average Overweight (x) . | . . . . Largest Inventory Capacity 8 | 8 8 8 8 Average Capacity 7 | 7 8 8 8 Most Carried 8 | 8 8 8 8 Average Carried 7 | 5 6 7 7 Final Capacity 8 | 8 8 8 5 Final Carried 8 | 7 7 8 5 Class Distribution -------------------- 89% | Mutant 10% | Scavenger-Mutant Dominant Class ---------------- Mutant | -10/Materials Mutant | -10/Mines Scavenger-Mutant | -9/Materials Resources | -11 -10 -10 -9 ----------- Run | Yrd Mat Min Mat Matter Collected 975 | 216 339 13 407 Remotely . | . . . . Salvage Created 1029 | . 534 51 444 Parts 67 | . 41 4 22 Haulers Intercepted . | . . . . Recyclers Shooed . | . . . . Parts Field Recycled . | . . . . Retrieved Matter . | . . . . Parts Self-Destructed . | . . . . Prevented . | . . . . Kills | -11 -10 -10 -9 ------- Run | Yrd Mat Min Mat Combat Hostiles Destroyed 30 | . 15 3 12 Guns 18 | . 6 . 12 Cannons 6 | . 6 . . AOE 6 | . 3 3 . Classes Destroyed 7 | . 5 1 1 Worker 1 | . . 1 . Builder 3 | . 2 1 . Recycler 1 | . 1 . . Watcher 2 | . 2 . . Swarmer 10 | . 9 . 1 Grunt 19 | . 6 3 10 Duelist 1 | . . . 1 Best Kill Streak 5 | . 5 4 4 Combat Bots Only 4 | . 3 2 4 Max Kills in Single Turn 3 | . 3 2 1 Gunslinging . | . . . . Exploded 2 | . 2 1 . Melee . | . . . . Uniques/NPCs Destroyed . | . . . . Combat | -11 -10 -10 -9 -------- Run | Yrd Mat Min Mat Hostile Shots Fired 275 | . 83 13 179 Missed 79 | . 32 4 43 Hits 196 | . 51 9 136 Melee 1 | . . . 1 Projectile 195 | . 51 9 135 Damage Taken 2161 | . 495 124 1542 Core 573 | . 124 41 408 Absorbed by Shields . | . . . . Regen/Repaired (Parts) 11 | . 11 . . Core Remaining (%) 67 | 100 . 34 . Volleys Fired 95 | . 47 10 38 Largest 2 | . 2 2 2 Hottest 125 | . 90 90 125 Shots Fired 177 | . 91 20 66 Gun 104 | . 41 . 63 Cannon 55 | . 47 5 3 Launcher 18 | . 3 15 . Special . | . . . . Kinetic 70 | . 41 . 29 Thermal 89 | . 47 5 37 Explosive 18 | . 3 15 . Electromagnetic . | . . . . Robot Hit Streak 10 | . 8 6 10 Robot Miss Streak 5 | . 5 2 5 Penetration Max . | . . . . Secondary Targets . | . . . . Shots Hit Robots 96 | . 40 10 46 Core Hits 65 | . 22 14 29 Critical Kills . | . . . . Critical Parts Destroyed . | . . . . Critical Strikes 1 | . . . 1 Burn 1 | . . . 1 Melee Attacks . | . . . . Impact . | . . . . Slashing . | . . . . Piercing . | . . . . Sneak Attacks . | . . . . Combat Hostiles . | . . . . Follow-up Attacks . | . . . . Damage Inflicted 2150 | . 842 623 685 Guns 908 | . 252 . 656 Cannons 460 | . 388 54 18 Explosions 771 | . 202 569 . Melee . | . . . . Ramming 11 | . . . 11 Kinetic 605 | . 252 . 353 Thermal 763 | . 388 54 321 Explosive 771 | . 202 569 . Electromagnetic . | . . . . Impact . | . . . . Slashing . | . . . . Piercing . | . . . . Highest Corruption 3 | . 3 3 . Average Corruption 1 | . 1 3 . Corruption Purged . | . . . . Corruption Blocked . | . . . . Effects 14 | . 4 10 . Message Errors 3 | . 1 2 . Matter Fused 3 | . 2 1 . Energy Discharges 3 | . . 3 . Data Loss (minor) 1 | . . 1 . Data Loss (major) 3 | . . 3 . Alerts 1 | . 1 . . Overload Shots . | . . . . Overflow Damage 29 | . 1 28 . Projectiles 17 | . 1 16 . Explosions 12 | . . 12 . Melee . | . . . . Knockbacks 1 | . . . 1 Impact 1 | . . . 1 Kinetic . | . . . . Secondary . | . . . . Self-Inflicted Damage 23 | . 23 . . Shots 2 | . 2 . . Rammed 2 | . . . 2 Targets Rammed 9 | . . . 9 Kicked 7 | . . . 7 Crushed . | . . . . Highest Temperature 213 | . 140 192 213 Average Temperature 75 | . 53 99 92 Received Heat Transfer 825 | . 114 69 642 Siege Activations . | . . . . Martial Activations . | . . . . Shielding Activations . | . . . . Robots Disrupted . | . . . . Combat Hostiles . | . . . . Robots Corrupted . | . . . . Combat Hostiles . | . . . . Parts Fried . | . . . . Impact Corruptions . | . . . . Robots Melted . | . . . . Combat Hostiles . | . . . . Parts Melted 1 | . 1 . . Heat Transferred 1742 | . 814 111 817 Parts Sabotaged . | . . . . Parts Stolen . | . . . . Parts Stripped . | . . . . Power Chain Reactions . | . . . . Alert | -11 -10 -10 -9 ------- Run | Yrd Mat Min Mat Maximum Alert Level 1 | . 1 1 . Low Security (%) 95 | 100 91 95 100 Level 1 4 | . 8 4 . Level 2 . | . . . . Level 3 . | . . . . Level 4 . | . . . . Level 5 . | . . . . High Security . | . . . . Max Security . | . . . . Peak Influence 216 | . 216 212 125 Initial 65 | . . 65 1 Average 89 | . 98 104 62 Influence Increases 894 | . 432 177 285 Destroy 0b10 Robot/C 600 | . 300 60 240 Destroy 0b10 Robot/NC 35 | . 25 10 . Destroy Leader 104 | . 54 20 30 Successful Hack 2 | . 2 . . Disable Machine 60 | . 15 45 . Destroy Structure 63 | . 21 42 . Lose Combat Pursuer 30 | . 15 . 15 Influence Decreases 859 | . 264 341 254 Entered New Map 106 | . . 103 3 Time Decay 623 | . 254 238 131 Lost Part 130 | . 10 . 120 Squads Dispatched 5 | . 3 . 2 Investigation 2 | . 1 . 1 Extermination . | . . . . Reinforcement 3 | . 2 . 1 Assault . | . . . . Garrison . | . . . . Intercept . | . . . . Searches Triggered . | . . . . Construction Impeded . | . . . . Haulers Reinforced . | . . . . Active Scanning Responses . | . . . . Cargo Convoy Interrupts . | . . . . Stealth | -11 -10 -10 -9 --------- Run | Yrd Mat Min Mat Distress Signals 3 | . 3 . . Communications Jammed . | . . . . Distress Signals . | . . . . Times Spotted 43 | . 22 4 17 Peak Tracking Total 5 | . 5 2 5 Tactical Retreats 2 | . 1 . 1 Traps | -11 -10 -10 -9 ------- Run | Yrd Mat Min Mat Traps Triggered 4 | . 2 . 2 Indirectly . | . . . . Trap Hack Attempts . | . . . . Triggered . | . . . . Disarmed . | . . . . Reprogrammed . | . . . . Reused . | . . . . Traps Extracted . | . . . . Installed . | . . . . Triggered . | . . . . Machines | -11 -10 -10 -9 ---------- Run | Yrd Mat Min Mat Machines Disabled 4 | . 1 3 . Max in Single Turn 3 | . 1 3 . Machines Repaired . | . . . . Machines Dismantled . | . . . . Machines Sabotaged . | . . . . Overloaded Fab Kills . | . . . . Hacking | -11 -10 -10 -9 --------- Run | Yrd Mat Min Mat Machines Accessed 2 | . 1 1 . Terminals 1 | . . 1 . Fabricators . | . . . . Repair Stations 1 | . 1 . . Recycling Units . | . . . . Scanalyzers . | . . . . Garrison Access . | . . . . Total Hacks 9 | . 7 2 . Successful 5 | . 3 2 . Failed 4 | . 4 . . Catastrophic . | . . . . Database Lockouts . | . . . . Manual . | . . . . Terminals 2 | . . 2 . Fabricators . | . . . . Repair Stations 7 | . 7 . . Recycling Units . | . . . . Scanalyzers . | . . . . Garrison Access . | . . . . Terminal Hacks 2 | . . 2 . Record 2 | . . 2 . Fabricator Hacks . | . . . . Repair Station Hacks 3 | . 3 . . Scan Component 2 | . 2 . . Repair 1 | . 1 . . Recycling Unit Hacks . | . . . . Scanalyzer . | . . . . Garrison Access Hacks . | . . . . Unauthorized Hacks . | . . . . Terminals . | . . . . Fabricators . | . . . . Repair Stations . | . . . . Recycling Units . | . . . . Scanalyzers . | . . . . Garrison Access . | . . . . Data Cores Recovered . | . . . . Used . | . . . . Hacking Detections 2 | . 1 1 . Full Trace Events 1 | . 1 . . Feedback Events . | . . . . Feedback Blocked . | . . . . Robot Schematics Acquired . | . . . . Robots Built . | . . . . Authchips . | . . . . Time . | . . . . Total Robot Build Rating . | . . . . Part Schematics Acquired . | . . . . Parts Built . | . . . . Authchips . | . . . . Time . | . . . . Total Part Build Rating . | . . . . Parts Repaired 1 | . 1 . . Time 26 | . 26 . . Parts Recycled . | . . . . Recycled Matter . | . . . . Retrieved Matter . | . . . . Retrieved Components . | . . . . Parts Scanalyzed . | . . . . Part Schematics Acquired . | . . . . Parts Damaged . | . . . . Bothacking | -11 -10 -10 -9 ------------ Run | Yrd Mat Min Mat Used RIF Installer . | . . . . Robots Hacked . | . . . . Non-combat . | . . . . Combat . | . . . . Robot Hacks Applied . | . . . . Relay Couplers Released . | . . . . Fabnet Peak Effective % . | . . . . Robots Rewired . | . . . . Allies Hacked . | . . . . Hacks Repelled . | . . . . Allies | -11 -10 -10 -9 -------- Run | Yrd Mat Min Mat Total Allies . | . . . . Largest Group . | . . . . Highest-Rated Group . | . . . . Highest-Rated Ally . | . . . . Total Orders . | . . . . Ally Attacks . | . . . . Total Damage . | . . . . Kills . | . . . . Allies Corrupted . | . . . . Allies Melted . | . . . . Intel | -11 -10 -10 -9 ------- Run | Yrd Mat Min Mat Active Infowar (turns) 886 | . 195 518 173 Terrain 723 | . 32 518 173 Structural 163 | . 163 . . Robot Analysis Total . | . . . . Derelict Logs Recovered . | . . . . Drone Launches . | . . . . Drone Recoveries . | . . . . Exploration | -11 -10 -10 -9 ------------- Run | Yrd Mat Min Mat Turns Passed 1552 | 65 647 518 322 Spaces Moved 1081 | 52 474 405 150 Core 21 | 10 . . 11 Treads . | . . . . Legs 635 | 2 179 405 49 Wheels 425 | 40 295 . 90 Hover . | . . . . Flight . | . . . . Fastest Speed 50 | 50 90 120 90 Average Speed 107 | 85 101 120 103 Slowest Speed 190 | 120 120 120 190 Overloaded Moves . | . . . . Propulsion Burnouts . | . . . . Robots Hopped . | . . . . Potential Cave-ins . | . . . . Cave-ins Triggered . | . . . . Exploration Rate (%) 39 | 3 67 73 15 Regions Visited 3 Branch Regions 1 Pre-discovered Areas . | . . . . Known Exits Taken . | . . . . Unknown Exits Taken 3 | 1 1 1 . Scrap Searched . | . . . . Spaces Dug . | . . . . Terrain Destroyed 83 | . 21 62 . Melee . | . . . . Projectile . | . . . . AOE 83 | . 21 62 . Terrain Rammed . | . . . . Walls Destroyed . | . . . . Machines Disabled . | . . . . Actions | -11 -10 -10 -9 --------- Run | Yrd Mat Min Mat Total 1282 | 69 548 416 249 Wait 24 | . 7 . 17 Move 1078 | 51 473 404 150 Hop . | . . . . Pick Up 28 | 10 7 1 10 Fast Attach 6 | 2 . . 4 Attach 13 | 3 5 . 5 Detach . | . . . . Swap 18 | 3 6 1 8 Drop 11 | . 3 . 8 Fire 95 | . 47 10 38 Melee . | . . . . Ram 2 | . . . 2 Kick 7 | . . . 7 Crush . | . . . . Escape Stasis . | . . . . Rewire . | . . . . Trap . | . . . . Miscellaneous . | . . . . Route ------- -11/Scrapyard -10/Materials (discovered 2 exits: [*Mat] / *Min) -10/Mines -9/Materials (discovered 1 exit: [*Mat]) History --------- Turn | Location | Event 3 | -11/Scrapyard | Discovered new exit (range 15) 66 | -11/Scrapyard | Entered Materials 264 | -10/Materials | Discovered new exit (range 16) 302 | -10/Materials | Build established: Mutant 308 | -10/Materials | Discovered new exit (range 13) 664 | -10/Materials | Repaired Lgt. Ion Engine? 713 | -10/Materials | Entered Mines 722 | -10/Mines | Core integrity fell below 50% 750 | -10/Mines | YI-UF0 nonchalantly dropped a Grenade Launcher on the ground 1215 | -10/Mines | Discovered new exit (range 12) 1231 | -10/Mines | Entered Materials 1231 | -9/Materials | Evolved 2 slots: Power x1, Utility x1 1345 | -9/Materials | Lost 3 parts (2p1w) 1427 | -9/Materials | Discovered new exit (range 12) 1458 | -9/Materials | Lost 4 parts (2p1n1u) 1512 | -9/Materials | Core integrity fell below 50% 1543 | -9/Materials | Core integrity fell below 20% 1553 | -9/Materials | Destroyed by G-34 Mercenary with Small Laser Last Messages --------------- 01528_ Ion Engine destroyed. 01529_ Kicked G-47 Trooper out of the way. 01530_ Aluminum Leg destroyed. 01532_ Imp. Aluminum Leg destroyed. 01533_ Particle Gun destroyed. 01533_ Slammed into G-34 Mercenary. 01534_ G-47 Trooper suffers critical hit (Destroy). 01534_ G-47 Trooper destroyed. 01535_ Slammed into G-34 Mercenary. 01536_ Beam Cannon destroyed. 01540_ Triggered Alarm Trap. 01540_ An alarm sounds. 01540_ ALERT: Alarm triggered, dispatching investigation squad. 01542_ Imp. Heat Sink destroyed. 01545_ R-06 Scavenger collects Aluminum Leg. 01548_ R-06 Scavenger collects Sml. Laser. 01553_ R-06 Scavenger collects Ion Engine. 01553_ Sml. Storage Unit destroyed. Map ----- +----------------------------------------------------+ | | | | | ????????????????????????????????????????????#????? | | ????????????????????????????????????????????#???#? | | ?????????????????????????????????????????????????? | | ?????????????????????????????????????????????????? | | ?????????????????????????????????????????????????? | | ??????????????????????????????????????????#??##### | | ????????????????????????????????????? ######?# # | | ??????????????????????????????????????# # # | | ??????????????????????????????????????# """ # # | | ??????????????????????????????????????# """ + # | | ??????????????????????????????????????# """ # # | | ????????????????????????????????????? # # # | | ??????????????????????????????? ?????# ?# # | | ??????????????????????####+#### ?????######?# # | | ?????????????????????? ?? ????#???# # | | ??????????????????????? #???????#???# # | | ??????????????????????? [ #????######## + | | ??????????????????????? #????# # | | ???????????????????????# """ #????# # | | ???????????????????????# """ #????# # | | ????????????????????? ?# """ ##???# ### | | ????????????????????""?# """ #???## #?? | | ?????????????????????" # """ #????# ##? | | ?????????????????????? # @= #????# #? | | ???????????????????? Y/ #????# ##? | | ???????????????? """ # """ #????# ## | | ??????????????# """?# """ ###### | | ???????????????? ?k""??# gs""" | | ?????????????????? ????# s""" k | | ???????????????????????# %""" """ | | ???????????????????????#%%%%% """ | | ???????????????????????## %% """ | | ????????????????????????#r################## | | ????????????????????????# #????????????#???# | | ????????????????????????#[#????????????????# """ | | ???????????????????#????#a#???????#??#??? ?# """ | | ?????????????????#?####?# #????#???#?#? ???# """ | | ???????????????????# ## #???????#??????? | | ???????????????????# ## #??????????????#?# | | ???????????????????# ## #???????##??????## ? | | ????????????? ?????? ## ##??#????#???????? | | ???????????????????? ## #?????????#??#?#?? " " | | ????????????????????? ## #????????#????????? ???? | | ????????????????????? ## #?????????????#????????? | | ???????????####+######+## #??????????????????????? | | ???????????# =#?????#????????????????? | | ???????????# < ! #??????????????????????? | | ???????????# = #??????????????????????? | +----------------------------------------------------+ Best States ------------- Heat Dissipation 52 Energy Generation 15 Energy Capacity 400 Matter Stores 300 Matter Capacity 300 Sight Range 16 Terrain Scan Range 16 Terrain Scan Density 10 Evasion (%) 55 Item Schematics ----------------- None Robot Schematics ------------------ None Fabricated ------------ Nothing Repaired ---------- Lgt. Ion Engine | 72% | -10/Materials Alien Tech Used ----------------- None Achievements -------------- None Challenges ------------ None Game ------ Seed PersonalConceptShifter Manual? 0 Play Time 00:24:09 Cumulative 3.8 hours Start 2025.09.21 @ 16:40:19 End 2025.09.21 @ 19:46:28 Sessions 4 Manual Loads 0 Difficulty Rogue Special Mode None Game No. 7 Rogue 3 Adventurer 4 Explorer 0 Win Type - Total 0 Types 0/0/0/0/0/0/0/0/0/0 Lore% 1 Gallery% 5 Achievement% 8 Wizard Run 0 Options --------- Layout 1 ASCII 0 Keyboard 0 Movement Mouse Keybinds 0 Fullscreen 2 Font 24/Smallcaps Map View 50x35 Zoom Use 0% Tactical HUD 1 Map Filters NONE Filters NONE Steam 1 RUN: 4665951a-9c70-40e6-b162-2de3ea496114